fUSD/lending_fUSD_20240611
["ID","MTS","AMOUNT","RATE_DAILY","PERIOD"]
[329092277,1718100635386,-500.0,0.00027367,2]
[329092278,1718100635397,-500.0,0.00027367,2]
[329092279,1718100635408,-500.0,0.00027367,2]
[329092280,1718100635418,-500.0,0.00027367,2]
[329092281,1718100635430,-500.0,0.00027367,2]
[329092282,1718100635441,-500.0,0.00027367,2]
[329092283,1718100635451,-500.0,0.00027367,2]
[329092284,1718100635461,-500.0,0.00027367,2]
[329092285,1718100635472,-500.0,0.00027367,2]
[329092286,1718100635483,-500.0,0.00027367,2]
[329092287,1718100635493,-500.0,0.00027367,2]
[329092288,1718100635503,-500.0,0.00027367,2]
[329092289,1718100635513,-500.0,0.00027367,2]
[329092290,1718100635526,-500.0,0.00027367,2]
[329092291,1718100635536,-500.0,0.00027367,2]
[329092292,1718100635546,-500.0,0.00027367,2]
[329092293,1718100635556,-500.0,0.00027367,2]
[329092294,1718100635566,-500.0,0.00027367,2]
[329092295,1718100635576,-500.0,0.00027367,2]
[329092296,1718100635587,-500.0,0.00027367,2]
[329092297,1718100635597,-500.0,0.00027367,2]
[329092298,1718100635607,-500.0,0.00027367,2]
[329092299,1718100635618,-500.0,0.00027367,2]
[329092300,1718100635628,-150.5,0.00027367,15]
[329092301,1718100635638,-800.0,0.0002737,2]
[329092302,1718100635649,-1147.0,0.00027376,15]
[329092303,1718100635659,-1249.0,0.00027377,15]
[329092304,1718100635669,-150.5,0.00027377,15]
[329092305,1718100635682,-1147.0,0.00027386,15]
[329092306,1718100635693,-152.84,0.00027386,2]
[329092307,1718100635703,-150.5,0.00027387,15]
[329092308,1718100635714,-1249.0,0.00027387,15]
[329092309,1718100635724,-335.6342277,0.00027387,2]
[329092310,1718100635734,-32677.9275317,0.00027387,2]
[329092311,1718100635972,-1248.4854052,0.00027387,2]
[329092312,1718100635983,-594.0742969,0.00027387,2]
[329092313,1718100635993,-1997.7408,0.00027394,2]
[329092314,1718100636004,-330.15507371,0.00027394,2]
[329092315,1718100636015,-541.17654791,0.00027394,7]
[329092316,1718100636026,-621.20003601,0.00027395,2]
[329092317,1718100636036,-150.0,0.00027396,10]
[329092318,1718100636047,-150.0,0.00027396,10]
[329092319,1718100636057,-150.0,0.00027396,10]
[329092320,1718100636069,-150.0,0.00027396,10]
[329092321,1718100636079,-150.0,0.00027396,10]
[329092322,1718100636090,-150.0,0.00027396,10]
[329092323,1718100636101,-150.0,0.00027396,10]
[329092324,1718100636112,-208.87102398,0.00027396,2]
[329092325,1718100636123,-3217.37901469,0.00027396,2]
[329092326,1718100636134,-150.0,0.00027396,10]
[329092327,1718100636149,-150.0,0.00027396,10]
[329092328,1718100636160,-150.0,0.00027396,10]
[329092329,1718100636173,-150.0,0.00027396,10]
[329092330,1718100636184,-150.0,0.00027396,10]
[329092331,1718100636195,-150.0,0.00027396,10]
[329092332,1718100636205,-150.0,0.00027396,10]
[329092333,1718100636215,-745.0,0.00027396,2]
[329092334,1718100636229,-500.0,0.00027397,4]
[329092335,1718100636241,-500.0,0.00027397,4]
[329092336,1718100636252,-500.0,0.00027397,4]
[329092337,1718100636262,-571.84062613,0.00027397,4]
[329092338,1718100636273,-500.0,0.00027397,4]
[329092339,1718100636284,-500.0,0.00027397,4]
[329092340,1718100636295,-500.0,0.00027397,4]
[329092341,1718100636308,-365.15189406,0.00027397,4]
[329092342,1718100636324,-300.56774659,0.00027397,4]
[329092343,1718100636335,-500.0,0.00027397,4]
[329092344,1718100636346,-27786.05174386,0.00027397,2]
[329092345,1718100636356,-496.71528541,0.00027397,4]
[329092346,1718100636368,-500.0,0.00027397,4]
[329092347,1718100636380,-151.0,0.00027397,7]
[329092348,1718100636391,-151.0,0.00027397,7]
[329092349,1718100636402,-151.0,0.00027397,7]
[329092350,1718100636413,-500.0,0.00027397,4]
[329092351,1718100636426,-439.26670151,0.00027397,4]
[329092352,1718100636436,-500.0,0.00027397,2]
[329092353,1718100636447,-500.0,0.00027397,4]
[329092354,1718100636458,-200.0,0.00027397,4]
[329092355,1718100636469,-592.00667294,0.00027397,4]
[329092356,1718100636481,-497.02569865,0.00027397,4]
[329092357,1718100636492,-151.0,0.00027397,7]
[329092358,1718100636502,-151.0,0.00027397,7]
[329092359,1718100636513,-151.0,0.00027397,7]
[329092360,1718100636523,-151.0,0.00027397,7]
[329092361,1718100636534,-151.0,0.00027397,7]
[329092362,1718100636545,-151.0,0.00027397,7]
[329092363,1718100636555,-533.56001743,0.00027397,4]
[329092364,1718100636566,-517.62076597,0.00027397,4]
[329092365,1718100636576,-151.0,0.00027397,7]
[329092366,1718100636587,-151.0,0.00027397,7]
[329092367,1718100636597,-151.0,0.00027397,7]
[329092368,1718100636608,-151.0,0.00027397,7]
[329092369,1718100636618,-500.0,0.00027397,4]
[329092370,1718100636628,-151.0,0.00027397,7]
[329092371,1718100636639,-151.0,0.00027397,7]
[329092372,1718100636650,-158.678743,0.00027397,7]
[329092373,1718100636661,-500.0,0.00027397,4]
[329092374,1718100636673,-500.0,0.00027397,4]
[329092375,1718100636684,-500.0,0.00027397,4]
[329092376,1718100636695,-500.0,0.00027397,4]
[329092377,1718100636706,-609.82,0.00027397,4]
[329092378,1718100636716,-577.62,0.00027397,4]
[329092379,1718100636729,-500.0,0.00027397,4]
[329092380,1718100636739,-500.0,0.00027397,4]
[329092381,1718100636750,-500.0,0.00027397,4]
[329092382,1718100636762,-500.0,0.00027397,4]
[329092383,1718100636773,-507.70299202,0.00027397,4]
[329092384,1718100636784,-500.0,0.00027397,4]
[329092385,1718100636794,-500.0,0.00027397,4]
[329092386,1718100636805,-500.0,0.00027397,4]
[329092387,1718100636815,-500.0,0.00027397,4]
[329092388,1718100636826,-500.0,0.00027397,4]
[329092389,1718100636836,-500.0,0.00027397,4]
[329092390,1718100636846,-502.93709236,0.00027397,4]
[329092391,1718100636858,-529.59765584,0.00027397,4]
[329092392,1718100636869,-500.0,0.00027397,4]
[329092393,1718100636880,-500.0,0.00027397,4]
[329092394,1718100636890,-512.09537072,0.00027397,4]
[329092395,1718100636901,-500.0,0.00027397,4]
[329092396,1718100636911,-500.0,0.00027397,4]
[329092397,1718100636922,-554.80787058,0.00027397,4]
[329092398,1718100636933,-500.0,0.00027397,4]
[329092399,1718100636943,-151.0,0.00027397,7]
[329092400,1718100636953,-151.0,0.00027397,7]
[329092401,1718100636964,-151.0,0.00027397,7]
[329092402,1718100636974,-500.0,0.00027397,4]
[329092403,1718100636985,-151.0,0.00027397,7]
[329092404,1718100636995,-151.0,0.00027397,7]
[329092405,1718100637006,-241.11111,0.00027397,7]
[329092406,1718100637017,-153.176636,0.00027397,7]
[329092407,1718100637027,-500.0,0.00027397,4]
[329092408,1718100637038,-535.93175327,0.00027397,4]
[329092409,1718100637048,-500.0,0.00027397,4]
[329092410,1718100637058,-500.0,0.00027397,4]
[329092411,1718100637069,-523.18973266,0.00027397,4]
[329092412,1718100637079,-593.45,0.00027397,4]
[329092413,1718100637089,-500.0,0.00027397,4]
[329092414,1718100637099,-453.19236422,0.00027397,4]
[329092415,1718100637144,-46.80763578,0.00027397,4]
[329092416,1718100637155,-353.69081936,0.00027397,4]
[329092417,1718100637166,-500.0,0.00027397,4]
[329092418,1718100637181,-500.0,0.00027397,4]
[329092419,1718100637192,-500.0,0.00027397,4]
[329092420,1718100637202,-500.0,0.00027397,4]
[329092421,1718100637213,-500.0,0.00027397,4]
[329092422,1718100637225,-151.190509,0.00027397,7]
[329092423,1718100637236,-298.41103586,0.00027397,4]
[329092424,1718100637251,-201.58896414,0.00027397,4]
[329092425,1718100637261,-500.0,0.00027397,4]
[329092426,1718100637272,-535.14832132,0.00027397,4]
[329092427,1718100637283,-500.0,0.00027397,4]
[329092428,1718100637294,-500.0,0.00027397,4]
[329092429,1718100637319,-500.0,0.00027397,4]
[329092430,1718100637330,-500.0,0.00027397,4]
[329092431,1718100637341,-500.0,0.00027397,4]
[329092432,1718100637352,-500.0,0.00027397,4]
[329092433,1718100637363,-500.0,0.00027397,4]
[329092434,1718100637375,-500.0,0.00027397,4]
[329092435,1718100637385,-500.0,0.00027397,4]
[329092436,1718100637396,-500.0,0.00027397,4]
[329092437,1718100637407,-488.28591454,0.00027397,4]
[329092438,1718100637469,-11.71408546,0.00027397,4]
[329092439,1718100637480,-299.35696085,0.00027397,4]
[329092440,1718100637491,-292.11916683,0.00027397,4]
[329092444,1718100637811,-207.88083317,0.00027397,4]
[329092445,1718100637822,-500.0,0.00027397,4]
[329092446,1718100637832,-500.0,0.00027397,4]
[329092447,1718100637843,-500.0,0.00027397,4]
[329092449,1718100637854,-522.92,0.00027397,4]
[329092451,1718100637865,-524.06363555,0.00027397,4]
[329092453,1718100637876,-151.0,0.00027397,7]
[329092454,1718100637887,-151.0,0.00027397,7]
[329092455,1718100637897,-500.0,0.00027397,4]
[329092456,1718100637908,-500.0,0.00027397,4]
[329092457,1718100637918,-500.0,0.00027397,4]
[329092458,1718100637930,-500.0,0.00027397,4]
[329092459,1718100637940,-513.9,0.00027397,4]
[329092460,1718100637950,-500.0,0.00027397,4]
[329092461,1718100637961,-500.0,0.00027397,4]
[329092462,1718100637971,-146.54333128,0.00027397,4]
[329092463,1718100638019,-353.45666872,0.00027397,4]
[329092464,1718100638030,-516.92332214,0.00027397,4]
[329092465,1718100638041,-947.931432,0.00027397,2]
[329092466,1718100638052,-500.0,0.00027397,4]
[329092467,1718100638062,-500.0,0.00027397,4]
[329092468,1718100638073,-500.0,0.00027397,4]
[329092469,1718100638083,-500.0,0.00027397,4]
[329092470,1718100638095,-500.0,0.00027397,4]
[329092471,1718100638106,-500.0,0.00027397,4]
[329092472,1718100638117,-498.86254387,0.00027397,4]
[329092473,1718100638127,-500.0,0.00027397,4]
[329092474,1718100638140,-500.0,0.00027397,4]
[329092475,1718100638152,-500.0,0.00027397,4]
[329092476,1718100638163,-510.0,0.00027397,4]
[329092477,1718100638175,-500.0,0.00027397,4]
[329092478,1718100638185,-500.0,0.00027397,4]
[329092479,1718100638195,-111.59705166,0.00027397,4]
[329092480,1718100639199,-371.35077724,0.00027397,13]
[329092481,1718100639212,-1245.18162271,0.00027397,13]
[329092482,1718100639227,-1336.65532,0.00027397,13]
[329092483,1718100639253,-669.62,0.00027397,13]
[329092484,1718100639890,-1143.8963,0.00027172,2]
[329092485,1718100639901,-14835.11298584,0.00027397,13]
[329092486,1718100639919,-8615.29049368,0.00027397,13]
[329092487,1718100639933,-437.39436627,0.00027397,13]
[329092503,1718100640361,-1169.55400002,0.00027397,13]
[329092504,1718100640374,-35313.46789084,0.00027397,13]
[329092530,1718100640663,-385797.95831989,0.00027397,13]
[329092550,1718100640872,-6685.0,0.00027397,13]
[329092556,1718100640925,-2832.13414275,0.00027397,13]
[329092585,1718100641559,-670.0,0.00027397,13]
[329092586,1718100641581,-272.12555121,0.00027397,13]
[329092587,1718100641641,-271.585314,0.00027397,13]
[329092588,1718100641666,-466.69442173,0.00027366,2]
[329092589,1718100641678,-3061.03053389,0.00027397,13]
[329092590,1718100641960,-355.35019237,0.00027366,2]
[329092591,1718100641970,-6347.84980763,0.00027397,13]
[329092698,1718100643247,-13417.08543893,0.00027397,13]
[329092703,1718100643308,-1699.49323014,0.00027397,13]
[329092708,1718100643349,-3854.93087143,0.00027397,13]
[329092710,1718100643363,-2995.6549815,0.00027397,13]
[329092716,1718100643410,-1815.85709795,0.00027397,13]
[329092729,1718100643538,-529.50685062,0.00027397,13]
[329092773,1718100644001,-5875.20707388,0.00027397,13]
[329092779,1718100644052,-5819.46560762,0.00027397,13]
[329092781,1718100644065,-47216.51997034,0.00027397,13]
[329092795,1718100644211,-3546.20469173,0.00027397,13]
[329092797,1718100644225,-66985.58756574,0.00027397,13]
[329092966,1718100646924,-649.62485788,0.00027396,2]
[329092967,1718100646936,-4812.02847248,0.00027396,2]
[329092968,1718100646946,-7384.72265212,0.00027397,13]
[329092969,1718100646968,-131617.67272211,0.00027397,13]
[329092970,1718100646981,-668.3677,0.00027397,13]
[329092971,1718100647010,-365.20128481,0.00027397,13]
[329092972,1718100647032,-5584.24758114,0.00027397,13]
[329092973,1718100647073,-267.34,0.00027397,13]
[329092974,1718100647202,-208.99062426,0.00027396,2]
[329092975,1718100647213,-6493.00937575,0.00027397,13]
[329092976,1718100647229,-6700.7,0.00027397,13]
[329092977,1718100647251,-670.0,0.00027397,13]
[329092978,1718100647263,-1465.34110357,0.00027397,13]
[329092979,1718100647285,-1677.59666589,0.00027397,13]
[329092980,1718100974135,-345.77981054,0.00017259,2]
[329092981,1718100990652,10000.0,0.00028,90]
[329092982,1718101056858,-193.18760792,0.00019084,2]
[329092983,1718101056892,-518.12188344,0.00019085,2]
[329092984,1718101056926,-709.0,0.000194,2]
[329092985,1718101056961,-1857.0,0.000195,2]
[329092986,1718101056994,-1000.0,0.00019553,2]
[329092987,1718101057028,-3727.728982,0.000199,2]
[329092988,1718101068495,573.77601249,0.00018985,2]
[329092989,1718101069536,1011.8835015,0.0002,2]
[329092990,1718101073380,573.77601249,0.00019143,2]
[329092991,1718101079058,573.77601249,0.000193,2]
[329092992,1718101080009,1780.9840789,0.0002,2]
[329092994,1718101358727,181.48,0.00018297,2]
[329092996,1718101482385,193.18760792,0.00017259,2]
[329092998,1718101641673,-150.0,0.00019725,2]
[329092999,1718101641698,-150.0,0.00019725,2]
[329093000,1718101641723,-160.44536192,0.000199,2]
[329093001,1718101641749,-729.0,0.00019999,2]
[329093002,1718101641774,-6264.89125027,0.0002,2]
[329093003,1718101641800,-260.75,0.0002102,2]
[329093004,1718101641824,-299.99,0.0002102,7]
[329093005,1718101641850,-499.99,0.00022601,2]
[329093006,1718101641874,-482.97349756,0.00022602,2]
[329093007,1718101641898,-500.0,0.00022602,2]
[329093008,1718101641923,-55.82612884,0.00022602,2]
[329093009,1718101647093,-176.66596482,0.00019899,2]
[329093010,1718101647119,-444.17387116,0.00022602,2]
[329093011,1718101647143,-4226.60069687,0.0002265,2]
[329093030,1718101832673,-193.18760792,0.00019451,2]
[329093031,1718101832684,-599.40250948,0.00022597,2]
[329093032,1718101832827,-400.59749052,0.00022597,2]
[329093033,1718101832839,-425.40250889,0.00022602,2]
[329093034,1718101832878,-74.59749111,0.00022602,2]
[329093035,1718101832890,-500.0,0.00022602,2]
[329093036,1718101832901,-11472.34930313,0.0002265,2]
[329093037,1718101832911,-250.0,0.00022801,2]
[329093038,1718101832922,-265.56,0.00022967,2]
[329093039,1718101832932,-250.0,0.00023024,2]
[329093040,1718101832943,-250.0,0.00023068,2]
[329093041,1718101832953,-250.0,0.0002323,2]
[329093042,1718101832964,-260.75,0.00023284,2]
[329093043,1718101832975,-1000.0,0.00023289,2]
[329093044,1718101832985,-500.0,0.00023698,2]
[329093045,1718101832997,-500.0,0.00023698,2]
[329093046,1718101833008,-254.02,0.00023699,2]
[329093047,1718101833018,-175.87,0.0002377,2]
[329093048,1718101833029,-167.0,0.00023906,2]
[329093049,1718101833041,-1292.2,0.00023921,2]
[329093050,1718101833052,-300.8429916,0.00024073,2]
[329093051,1718101833063,-171.63,0.00024384,2]
[329093052,1718101833074,-290.81,0.00024384,2]
[329093053,1718101833085,-5201.70470985,0.00024784,2]
[329093054,1718101833096,-1000.0,0.00024793,2]
[329093055,1718101833106,-500.0,0.00024794,2]
[329093056,1718101833117,-500.0,0.00024794,2]
[329093057,1718101833127,-2940.1145,0.00024831,2]
[329093058,1718101833138,-1250.0,0.00025,2]
[329093059,1718101833149,-2258.89706595,0.00025105,2]
[329093060,1718101833159,-5192.41825669,0.00025203,2]
[329093061,1718101833170,-3797.05,0.00025204,2]
[329093062,1718101833180,-151.21703737,0.00025242,2]
[329093063,1718101833191,-194.38010912,0.0002534,2]
[329093064,1718101833202,-215.43916169,0.00025341,2]
[329093065,1718101833212,-2258.89706595,0.00025474,2]
[329093066,1718101833223,-172.41954352,0.00025478,2]
[329093067,1718101833234,-500.0,0.00025478,2]
[329093068,1718101833244,-260.75,0.00025548,2]
[329093069,1718101833255,-180.0,0.00025553,2]
[329093070,1718101833269,-1800.82,0.00025616,2]
[329093071,1718101833280,-151.21703733,0.00025636,2]
[329093072,1718101833291,-2258.89706595,0.00025844,2]
[329093073,1718101833301,-466.59615473,0.00025889,2]
[329093074,1718101833312,-354.94459852,0.0002589,2]
[329093075,1718101833322,-500.0,0.0002589,2]
[329093076,1718101833333,-275.89647689,0.00025926,2]
[329093077,1718101833344,-196.02869234,0.00026008,2]
[329093078,1718101833354,-500.0,0.00026024,2]
[329093079,1718101833365,-2466.84,0.00026025,2]
[329093080,1718101833376,-1922.59,0.00026025,2]
[329093081,1718101833387,-4167.05,0.00026025,2]
[329093082,1718101833397,-1657.86,0.00026025,2]
[329093083,1718101833408,-68718.41,0.00026025,2]
[329093084,1718101833418,-4115.36,0.00026025,2]
[329093085,1718101833429,-1645.31,0.00026025,2]
[329093086,1718101833440,-1583.56,0.00026025,2]
[329093087,1718101833451,-2049.43,0.00026025,2]
[329093088,1718101833461,-2905.67,0.00026025,2]
[329093089,1718101833472,-1383.98,0.00026025,2]
[329093091,1718101833483,-2728.02,0.00026025,2]
[329093093,1718101833494,-3797.05,0.00026025,2]
[329093095,1718101833505,-1198.08,0.00026025,2]
[329093096,1718101833519,-2332.81,0.00026025,2]
[329093098,1718101833529,-1164.58,0.00026025,2]
[329093099,1718101833540,-4572.87,0.00026025,2]
[329093100,1718101833555,-3558.98,0.00026025,2]
[329093101,1718101833565,-997.53,0.00026025,2]
[329093103,1718101833576,-2240.94,0.00026025,2]
[329093105,1718101833588,-156.02082366,0.00026026,2]
[329093117,1718101833870,-500.0,0.00026026,2]
[329093118,1718101833881,-6164.97,0.00026026,2]
[329093119,1718101833893,-2341.2,0.00026026,2]
[329093120,1718101833904,-5114.73,0.00026026,2]
[329093121,1718101833915,-6992.98,0.00026026,2]
[329093122,1718101833925,-37880.22,0.00026026,2]
[329093123,1718101833935,-2655.61,0.00026026,2]
[329093124,1718101833946,-1877.99,0.00026026,2]
[329093125,1718101833956,-500.0,0.00026026,2]
[329093126,1718101833967,-7842.78,0.00026026,2]
[329093127,1718101833978,-4889.38,0.00026026,2]
[329093128,1718101833989,-2427.20075757,0.00026026,2]
[329093129,1718101834050,-450.0,0.00026026,2]
[329093130,1718101834062,-609.67999998,0.00026026,2]
[329093131,1718101834085,-201.32924245,0.00026026,2]
[329093132,1718101834096,-531.58504841,0.00026026,2]
[329093133,1718101834115,-6138.26495159,0.00026026,2]
[329093134,1718101834126,-4613.41,0.00026026,2]
[329093135,1718101834137,-151.21703733,0.0002603,2]
[329093136,1718101834148,-332.64543257,0.00026063,2]
[329093137,1718101834159,-169.1813528,0.00026102,2]
[329093138,1718101834170,-275.89647689,0.00026161,2]
[329093139,1718101834180,-500.0,0.00026161,2]
[329093140,1718101834191,-1992.29,0.00026161,2]
[329093141,1718101834201,-2883.49,0.00026161,2]
[329093142,1718101834212,-1716.77,0.00026161,2]
[329093143,1718101834223,-1162.01408005,0.00026161,2]
[329093144,1718101834235,-3132.41857615,0.00026161,2]
[329093145,1718101834277,-357.1073438,0.00026161,2]
[329093146,1718101834287,-4628.28,0.00026161,2]
[329093147,1718101834297,-1628.53,0.00026161,2]
[329093148,1718101834307,-1481.07,0.00026161,2]
[329093149,1718101834318,-5786.77,0.00026161,2]
[329093150,1718101834328,-1058.00925592,0.00026161,2]
[329093151,1718101834339,-1406.34,0.00026161,2]
[329093152,1718101834349,-532.3358469,0.00026161,2]
[329093153,1718101834360,-500.0,0.00026161,2]
[329093154,1718101834370,-500.0,0.00026161,2]
[329093155,1718101834380,-737.11616968,0.00026161,2]
[329093156,1718101834393,-3185.94146673,0.00026161,2]
[329093157,1718101834429,-418.33236359,0.00026161,2]
[329093158,1718101834439,-530.05920791,0.00026161,2]
[329093159,1718101834449,-500.0,0.00026161,2]
[329093160,1718101834460,-500.0,0.00026161,2]
[329093161,1718101834471,-1286.28,0.00026161,2]
[329093162,1718101834481,-596.01653136,0.00026161,2]
[329093163,1718101834491,-659.03,0.00026161,2]
[329093164,1718101834501,-2724.04,0.00026161,2]
[329093165,1718101834514,-500.0,0.00026161,2]
[329093166,1718101834525,-495.58810916,0.00026161,2]
[329093167,1718101834537,-798.46,0.00026161,2]
[329093168,1718101834547,-500.0,0.00026161,2]
[329093169,1718101834558,-2466.84,0.00026162,2]
[329093170,1718101834569,-1922.59,0.00026162,2]
[329093171,1718101834581,-4167.05,0.00026162,2]
[329093172,1718101834591,-1657.86,0.00026162,2]
[329093173,1718101834602,-68718.41,0.00026162,2]
[329093174,1718101834612,-421.03513556,0.00026162,2]
[329093175,1718101834626,-926.58736628,0.00026162,2]
[329093177,1718101838726,-381.33465368,0.00026025,2]
[329093178,1718101838760,-1530.03477773,0.00026025,2]
[329093179,1718101839180,-489.94056859,0.00026025,2]
[329093180,1718101839190,-1022.75008841,0.00026161,2]
[329093184,1718101840910,-3648.12991159,0.00026161,2]
[329093185,1718101840921,-500.0,0.00026161,2]
[329093186,1718101840930,-529.73426081,0.00026161,2]
[329093187,1718101840941,-109.74428351,0.00026161,2]
[329093188,1718101841426,-390.25571649,0.00026161,2]
[329093189,1718101841437,-500.0,0.00026161,2]
[329093190,1718101841448,-2767.73749816,0.00026162,2]
[329093191,1718101841459,-1645.31,0.00026162,2]
[329093192,1718101841469,-1583.56,0.00026162,2]
[329093193,1718101841480,-2049.43,0.00026162,2]
[329093194,1718101841491,-2514.85,0.00026162,2]
[329093195,1718101841508,-2905.67,0.00026162,2]
[329093196,1718101841526,-2147.18,0.00026162,2]
[329093197,1718101841539,-1383.98,0.00026162,2]
[329093198,1718101841555,-891.64,0.00026162,2]
[329093199,1718101841566,-3434.03,0.00026162,2]
[329093200,1718101841578,-2728.02,0.00026162,2]
[329093201,1718101841592,-1416.78,0.00026162,2]
[329093202,1718101841604,-533.48123962,0.00026162,2]
[329093203,1718101841615,-8655.18,0.00026162,2]
[329093204,1718101841627,-1198.08,0.00026162,2]
[329093205,1718101841637,-2877.24,0.00026162,2]
[329093206,1718101841648,-2332.81,0.00026162,2]
[329093207,1718101841660,-7583.93,0.00026162,2]
[329093208,1718101841671,-1164.58,0.00026162,2]
[329093209,1718101841682,-3955.65,0.00026162,2]
[329093210,1718101841693,-4572.87,0.00026162,2]
[329093211,1718101841704,-3409.08,0.00026162,2]
[329093212,1718101841725,-3558.98,0.00026162,2]
[329093213,1718101841736,-997.53,0.00026162,2]
[329093214,1718101841747,-2240.94,0.00026162,2]
[329093215,1718101841759,-500.0,0.00026162,2]
[329093216,1718101841772,-518.69205201,0.00026162,2]
[329093217,1718101841783,-412.20674172,0.00026162,2]
[329093218,1718101841794,-947.87,0.00026162,2]
[329093219,1718101841804,-2261.27,0.00026162,2]
[329093220,1718101841816,-2401.31,0.00026162,2]
[329093221,1718101841827,-500.0,0.00026162,2]
[329093222,1718101841838,-219.25847071,0.00026163,2]
[329093223,1718101841850,-500.0,0.00026163,2]
[329093224,1718101841862,-500.0,0.00026163,2]
[329093225,1718101841873,-2354.49,0.00026163,2]
[329093226,1718101841890,-2341.2,0.00026163,2]
[329093227,1718101841902,-3069.08,0.00026163,2]
[329093228,1718101841914,-5114.73,0.00026163,2]
[329093229,1718101841925,-741.08,0.00026163,2]
[329093230,1718101841936,-6992.98,0.00026163,2]
[329093231,1718101841947,-1106.62,0.00026163,2]
[329093232,1718101841958,-37880.22,0.00026163,2]
[329093233,1718101841969,-13509.96,0.00026163,2]
[329093234,1718101841979,-9754.28,0.00026163,2]
[329093235,1718101841990,-2655.61,0.00026163,2]
[329093236,1718101842000,-500.0,0.00026163,2]
[329093237,1718101842011,-1877.99,0.00026163,2]
[329093238,1718101842026,-3233.1,0.00026163,2]
[329093239,1718101842036,-500.0,0.00026163,2]
[329093240,1718101842047,-7842.78,0.00026163,2]
[329093241,1718101842057,-6537.64,0.00026163,2]
[329093242,1718101842068,-4889.38,0.00026163,2]
[329093243,1718101842079,-500.0,0.00026163,2]
[329093244,1718101842091,-3079.21,0.00026163,2]
[329093245,1718101842102,-3688.21,0.00026163,2]
[329093246,1718101842113,-1682.79,0.00026163,2]
[329093247,1718101842125,-4858.88,0.00026163,2]
[329093248,1718101842136,-6669.85,0.00026163,2]
[329093249,1718101842148,-1828.41,0.00026163,2]
[329093250,1718101842159,-4613.41,0.00026163,2]
[329093251,1718101842170,-5908.1,0.00026163,2]
[329093252,1718101842181,-315.2683828,0.00026199,2]
[329093253,1718101842193,-1000.0,0.000262,2]
[329093254,1718101842204,-159.1122753,0.00026208,2]
[329093255,1718101842216,-2258.89706595,0.00026213,2]
[329093256,1718101842232,-154.81295573,0.00026253,2]
[329093257,1718101842244,-315.2683828,0.00026268,2]
[329093259,1718101842255,-156.06603581,0.00026278,2]
[329093261,1718101842270,-152.55,0.0002629,2]
[329093263,1718101842282,-196.02869234,0.00026292,2]
[329093264,1718101842293,-154.55621713,0.00026293,2]
[329093266,1718101842304,-290.34916494,0.00026298,2]
[329093268,1718101842316,-1992.29,0.00026298,2]
[329093270,1718101842327,-2883.49,0.00026298,2]
[329093271,1718101842339,-1716.77,0.00026298,2]
[329093272,1718101842351,-4651.54,0.00026298,2]
[329093273,1718101842362,-4628.28,0.00026298,2]
[329093274,1718101842374,-1628.53,0.00026298,2]
[329093275,1718101842385,-1481.07,0.00026298,2]
[329093276,1718101842397,-5786.77,0.00026298,2]
[329093277,1718101842408,-1406.34,0.00026298,2]
[329093278,1718101842420,-500.0,0.00026298,2]
[329093279,1718101842432,-500.0,0.00026298,2]
[329093280,1718101842444,-4341.39,0.00026298,2]
[329093281,1718101842455,-500.0,0.00026298,2]
[329093282,1718101842466,-500.0,0.00026298,2]
[329093283,1718101842478,-1286.28,0.00026298,2]
[329093284,1718101842490,-659.03,0.00026298,2]
[329093285,1718101842501,-2724.04,0.00026298,2]